[Event "4th Baskent University Open 2019"]
[Site "Ankara"]
[Date "2019.06.19"]
[Round "5"]
[White "Mohannad, Farhan"]
[Black "Annaberdiev, Meilis"]
[Result "1/2-1/2"]
[ECO "D38"]
[WhiteElo "2193"]
[BlackElo "2532"]
[Annotator "ChessBase"]
[PlyCount "100"]
[EventDate "2019.06.18"]
[EventType "swiss"]
[EventCountry "TUR"]
[SourceTitle "playchess.com"]
[Source "ChessBase"]
[SourceQuality "1"]
[TimeControl "5400+30"]

1. d4 {[%emt 0:00:30]} Nf6 {[%emt 0:01:30]} 2. c4 {[%emt 0:00:30]} e6 {[%emt 0:00:00]} 3. Nf3 {[%emt 0:00:00]} d5 {[%emt 0:00:00]} 4. Bg5 {[%emt 0:00:00]} h6 {[%emt 0:01:30]} 5. Bxf6 {[%emt 0:01:30]} Qxf6 {[%emt 0:00:30]} 6. Nc3 {[%emt 0:00:30]} Bb4 {[%emt 0:00:00]} 7. e3 {[%emt 0:00:00]} O-O {[%emt 0:00:00]} 8. Rc1 {[%emt 0:00:00]} Rd8 {[%emt 0:11:30]} 9. a3 {[%emt 0:01:30]} Bxc3+ {[%emt 0:08:30]} 10. Rxc3 {[%emt 0:00:30]} c6 {[%emt 0:00:00]} 11. Bd3 {[%emt 0:02:30]} Nd7 {[%emt 0:02:00]} 12. cxd5 {[%emt 0:00:30]} exd5 {[%emt 0:01:30]} 13. O-O {[%emt 0:00:00]} a5 {[%emt 0:03:30]} 14. b4 {[%emt 0:06:00]} axb4 {[%emt 0:00:30]} 15. axb4 {[%emt 0:00:00]} Nb6 {[%emt 0:00:30]} 16. Qc2 {[%emt 0:01:00]} Be6 {[%emt 0:01:30]} 17. Ne5 {[%emt 0:00:30]} Qe7 {[%emt 0:01:30]} 18. f4 {[%emt 0:05:30]} Bd7 {[%emt 0:00:30]} 19. Bh7+ {[%emt 0:06:30]} Kh8 {[%emt 0:00:00]} 20. b5 {[%emt 0:09:30]} Be8 {[%emt 0:02:00]} 21. bxc6 {[%emt 0:24:30]} bxc6 {[%emt 0:00:30]} 22. Bd3 {[%emt 0:00:30]} f6 {[%emt 0:10:30]} 23. Rxc6 {[%emt 0:04:30]} Nc4 {[%emt 0:03:30]} 24. Bxc4 {[%emt 0:11:30]} fxe5 {[%emt 0:01:30]} 25. Rc5 {[%emt 0:01:30]} dxc4 {[%emt 0:06:30]} 26. Rxe5 {[%emt 0:01:30]} Qf7 {[%emt 0:00:00]} 27. f5 {[%emt 0:02:30]} Ra6 {[%emt 0:00:00]} 28. Re6 {[%emt 0:01:14]} Ra5 {[%emt 0:06:30]} 29. Qxc4 {[%emt 0:03:31]} Rad5 {[%emt 0:03:30]} 30. Rf3 {[%emt 0:05:49]} Bb5 {[%emt 0:01:30]} 31. Qc2 {[%emt 0:00:23]} Qd7 {[%emt 0:06:30]} 32. Qe4 {[%emt 0:00:56]} Rc8 {[%emt 0:01:30]} 33. h3 {[%emt 0:00:23]} Rc1+ {[%emt 0:07:30]} 34. Kh2 {[%emt 0:00:30]} Bc6 {[%emt 0:00:00]} 35. Qf4 {[%emt 0:04:06]} Rb5 {[%emt 0:01:00]} 36. Rg3 {[%emt 0:01:14]} Rbb1 {[%emt 0:00:48]} 37. Rxh6+ {[%emt 0:02:08]} Kg8 {[%emt 0:00:12]} 38. Rxg7+ {[%emt 0:01:28]} Qxg7 {[%emt 0:00:30]} 39. Rg6 {[%emt 0:00:30]} Rb7 {[%emt 0:00:30]} 40. e4 {[%emt 0:00:30]} Rc2 {[%emt 0:00:30]} 41. d5 {[%emt 0:00:30]} Be8 {[%emt 0:00:30]} 42. Rg5 {[%emt 0:00:30]} Kh8 {[%emt 0:00:30]} 43. Rxg7 {[%emt 0:00:30]} Rxg7 {[%emt 0:00:30]} 44. Qf3 {[%emt 0:00:30]} Rg5 {[%emt 0:00:30]} 45. Kg1 {[%emt 0:00:30]} Bh5 {[%emt 0:00:30]} 46. g4 {[%emt 0:00:30]} Rg7 {[%emt 0:00:30]} 47. Qf4 {[%emt 0:00:30]} Rb7 {[%emt 0:00:30]} 48. Qh6+ {[%emt 0:00:30]} Kg8 {[%emt 0:00:30]} 49. Qg5+ {[%emt 0:00:30]} Kf8 {[%emt 0:00:30]} 50. Qh6+ {[%emt 0:00:30]} Kg8 {[%emt 0:00:30]} 1/2-1/2

[Event "4th Baskent University Open 2019"]
[Site "Ankara"]
[Date "2019.06.19"]
[Round "5"]
[White "Yilmaz, Goktan"]
[Black "Nagy, Gabor"]
[Result "0-1"]
[ECO "B33"]
[WhiteElo "2155"]
[BlackElo "2471"]
[Annotator "ChessBase"]
[PlyCount "78"]
[EventDate "2019.06.18"]
[EventType "swiss"]
[EventCountry "TUR"]
[SourceTitle "playchess.com"]
[Source "ChessBase"]
[SourceQuality "1"]
[TimeControl "5400+30"]

1. e4 {[%emt 0:00:30]} c5 {[%emt 0:00:30]} 2. Nf3 {[%emt 0:00:00]} Nc6 {[%emt 0:00:30]} 3. d4 {[%emt 0:00:00]} cxd4 {[%emt 0:00:30]} 4. Nxd4 {[%emt 0:00:00]} Qb6 {[%emt 0:00:30]} 5. Nb3 {[%emt 0:00:00]} Nf6 {[%emt 0:00:30]} 6. Nc3 {[%emt 0:01:30]} e6 {[%emt 0:00:30]} 7. Qe2 {[%emt 0:01:30]} Bb4 {[%emt 0:00:00]} 8. Bd2 {[%emt 0:00:00]} O-O {[%emt 0:00:00]} 9. O-O-O {[%emt 0:04:00]} d5 {[%emt 0:00:30]} 10. exd5 {[%emt 0:12:30]} exd5 {[%emt 0:00:30]} 11. Be3 {[%emt 0:03:30]} Qc7 {[%emt 0:00:30]} 12. Nb5 {[%emt 0:04:30]} Qb8 {[%emt 0:00:30]} 13. N5d4 {[%emt 0:07:30]} a5 {[%emt 0:00:30]} 14. Nb5 {[%emt 0:05:30]} a4 {[%emt 0:01:30]} 15. N3d4 {[%emt 0:00:30]} a3 {[%emt 0:00:30]} 16. b3 {[%emt 0:00:30]} Re8 {[%emt 0:00:30]} 17. g3 {[%emt 0:13:30]} Nxd4 {[%emt 0:06:30]} 18. Nxd4 {[%emt 0:00:30]} Bg4 {[%emt 0:00:30]} 19. f3 {[%emt 0:05:30]} Ne4 {[%emt 0:01:30]} 20. Nb5 {[%emt 0:00:30]} Qe5 {[%emt 0:00:30]} 21. Bd4 {[%emt 0:03:30]} Qg5+ {[%emt 0:01:30]} 22. Kb1 {[%emt 0:13:30]} Nd2+ {[%emt 0:00:30]} 23. Qxd2 {[%emt 0:00:30]} Qxd2 {[%emt 0:00:30]} 24. Bd3 {[%emt 0:00:00]} Qxd1+ {[%emt 0:01:30]} 25. Rxd1 {[%emt 0:00:00]} Bxf3 {[%emt 0:00:30]} 26. Rf1 {[%emt 0:00:30]} Be2 {[%emt 0:00:30]} 27. Bxe2 {[%emt 0:02:30]} Rxe2 {[%emt 0:00:00]} 28. c3 {[%emt 0:00:00]} Bf8 {[%emt 0:00:00]} 29. Nc7 {[%emt 0:00:00]} Rd8 {[%emt 0:00:30]} 30. Rf2 {[%emt 0:00:00]} Rxf2 {[%emt 0:00:30]} 31. Bxf2 {[%emt 0:00:00]} Rd7 {[%emt 0:00:30]} 32. Nb5 {[%emt 0:00:30]} Re7 {[%emt 0:00:30]} 33. Nd4 {[%emt 0:00:30]} Re8 {[%emt 0:00:30]} 34. b4 {[%emt 0:00:30]} Bd6 {[%emt 0:00:30]} 35. Kc2 {[%emt 0:00:30]} Be5 {[%emt 0:00:30]} 36. Kb3 {[%emt 0:00:00]} Bxd4 {[%emt 0:01:30]} 37. Bxd4 {[%emt 0:00:00]} b5 {[%emt 0:01:30]} 38. Kxa3 {[%emt 0:00:00]} Ra8+ {[%emt 0:00:00]} 39. Kb3 {[%emt 0:00:00]} f6 {[%emt 0:00:00]} 0-1

[Event "4th Baskent University Open 2019"]
[Site "Ankara"]
[Date "2019.06.19"]
[Round "5"]
[White "Gokcek, Kursat Bugra"]
[Black "Saraci, Nderim"]
[Result "1/2-1/2"]
[ECO "A48"]
[WhiteElo "2127"]
[BlackElo "2377"]
[Annotator "NA"]
[PlyCount "76"]
[EventDate "2019.06.18"]
[EventType "swiss"]
[EventCountry "TUR"]
[SourceTitle "playchess.com"]
[Source "ChessBase"]
[SourceQuality "1"]
[TimeControl "5400+30"]

1. d4 {[%emt 0:00:30]} Nf6 {[%emt 0:00:30]} 2. Bf4 {[%emt 0:00:00]} g6 {[%emt 0:02:30]} 3. e3 {[%emt 0:00:00]} Bg7 {[%emt 0:00:00]} 4. Nf3 {[%emt 0:00:30]} O-O {[%emt 0:00:00]} 5. Be2 {[%emt 0:00:30]} b6 {[%emt 0:04:30]} 6. h3 {[%emt 0:01:30]} Bb7 {[%emt 0:01:30]} 7. O-O {[%emt 0:00:30]} c5 {[%emt 0:00:30]} 8. c3 {[%emt 0:01:30]} d5 {[%emt 0:02:30]} 9. Ne5 {[%emt 0:01:30]} Nc6 {[%emt 0:00:30]} 10. Nd2 {[%emt 0:01:30]} Nd7 {[%emt 0:05:30]} 11. Nxc6 {[%emt 0:12:30]} Bxc6 {[%emt 0:00:30]} 12. Nf3 {[%emt 0:00:30]} Re8 {[%emt 0:00:30]} 13. Bh2 {[%emt 0:03:30]} Qc8 {[%emt 0:06:30]} 14. Rc1 {[%emt 0:04:30]} Qb7 {[%emt 0:00:30]} 15. b4 {[%emt 0:00:30]} c4 {[%emt 0:10:30]} 16. a4 {[%emt 0:02:30]} a6 {[%emt 0:01:30]} 17. Rb1 {[%emt 0:00:30]} b5 {[%emt 0:02:30]} 18. a5 {[%emt 0:00:00]} f6 {[%emt 0:00:30]} 19. Rb2 {[%emt 0:13:00]} Rad8 {[%emt 0:00:30]} 20. Ne1 {[%emt 0:04:30]} e5 {[%emt 0:00:30]} 21. Nc2 {[%emt 0:00:00]} e4 {[%emt 0:01:30]} 22. Qd2 {[%emt 0:00:00]} Nf8 {[%emt 0:00:30]} 23. Ra1 {[%emt 0:00:30]} Ne6 {[%emt 0:00:30]} 24. Kf1 {[%emt 0:00:30]} Rf8 {[%emt 0:00:30]} 25. Ke1 {[%emt 0:00:30]} f5 {[%emt 0:00:30]} 26. Kd1 {[%emt 0:00:30]} g5 {[%emt 0:00:30]} 27. Kc1 {[%emt 0:00:30]} Qf7 {[%emt 0:00:30]} 28. Rbb1 {[%emt 0:16:30]} f4 {[%emt 0:09:30]} 29. Bg4 {[%emt 0:01:30]} Bd7 {[%emt 0:01:30]} 30. Bxe6 {[%emt 0:09:30]} Bxe6 {[%emt 0:00:30]} 31. Kb2 {[%emt 0:00:30]} f3 {[%emt 0:07:30]} 32. g4 {[%emt 0:04:30]} h5 {[%emt 0:01:30]} 33. Rh1 {[%emt 0:04:07]} Qd7 {[%emt 0:12:30]} 34. Bg3 {[%emt 0:02:46]} Kf7 {[%emt 0:03:30]} 35. Rh2 {[%emt 0:00:47]} Rh8 {[%emt 0:01:30]} 36. Rah1 {[%emt 0:00:12]} hxg4 {[%emt 0:03:30]} 37. h4 {[%emt 0:00:19]} gxh4 {[%emt 0:04:02]} 38. Rxh4 {[%emt 0:00:03]} Bf6 {[%emt 0:00:59]} 1/2-1/2

[Event "4th Baskent University Open 2019"]
[Site "Ankara"]
[Date "2019.06.19"]
[Round "5"]
[White "Guven, Oguz Kagan"]
[Black "Maghalashvili, Davit"]
[Result "1/2-1/2"]
[ECO "B22"]
[WhiteElo "2095"]
[BlackElo "2500"]
[Annotator "ChessBase"]
[PlyCount "53"]
[EventDate "2019.06.18"]
[EventType "swiss"]
[EventCountry "TUR"]
[SourceTitle "playchess.com"]
[Source "ChessBase"]
[SourceQuality "1"]
[TimeControl "5400+30"]

1. e4 {[%emt 0:02:30]} c5 {[%emt 0:01:30]} 2. Nf3 {[%emt 0:00:30]} e6 {[%emt 0:00:00]} 3. c3 {[%emt 0:00:30]} Nf6 {[%emt 0:01:00]} 4. e5 {[%emt 0:00:30]} Nd5 {[%emt 0:00:00]} 5. d4 {[%emt 0:00:00]} cxd4 {[%emt 0:00:00]} 6. cxd4 {[%emt 0:00:00]} Nc6 {[%emt 0:00:00]} 7. Bc4 {[%emt 0:00:00]} Nb6 {[%emt 0:00:00]} 8. Bb3 {[%emt 0:00:00]} d6 {[%emt 0:00:30]} 9. O-O {[%emt 0:00:00]} dxe5 {[%emt 0:01:30]} 10. dxe5 {[%emt 0:01:00]} Qxd1 {[%emt 0:01:30]} 11. Rxd1 {[%emt 0:00:30]} Be7 {[%emt 0:00:00]} 12. Nc3 {[%emt 0:00:30]} O-O {[%emt 0:00:00]} 13. Be3 {[%emt 0:04:30]} Nd7 {[%emt 0:02:30]} 14. Nb5 {[%emt 0:04:30]} Nc5 {[%emt 0:06:30]} 15. Bc2 {[%emt 0:24:30]} Nb4 {[%emt 0:03:30]} 16. Bxc5 {[%emt 0:00:30]} Bxc5 {[%emt 0:00:30]} 17. Be4 {[%emt 0:00:30]} a5 {[%emt 0:13:30]} 18. Rac1 {[%emt 0:03:30]} Na6 {[%emt 0:01:30]} 19. Nc7 {[%emt 0:02:30]} Nxc7 {[%emt 0:00:30]} 20. Rxc5 {[%emt 0:00:00]} Nd5 {[%emt 0:00:00]} 21. Bxd5 {[%emt 0:04:00]} exd5 {[%emt 0:03:00]} 22. Rcxd5 {[%emt 0:02:30]} Be6 {[%emt 0:00:30]} 23. Rb5 {[%emt 0:00:30]} Bxa2 {[%emt 0:00:30]} 24. Rxb7 {[%emt 0:01:30]} Rfd8 {[%emt 0:00:00]} 25. Rbd7 {[%emt 0:00:30]} Rdb8 {[%emt 0:03:00]} 26. R1d2 {[%emt 0:06:30]} h6 {[%emt 0:01:30]} 27. g3 {[%emt 0:00:30]} 1/2-1/2

[Event "4th Baskent University Open 2019"]
[Site "Ankara"]
[Date "2019.06.19"]
[Round "5"]
[White "Unat, Can Haktan"]
[Black "Gunduz, Umut Erdem"]
[Result "0-1"]
[ECO "B38"]
[WhiteElo "2079"]
[BlackElo "2302"]
[Annotator "NA"]
[PlyCount "134"]
[EventDate "2019.06.18"]
[EventType "swiss"]
[EventCountry "TUR"]
[SourceTitle "playchess.com"]
[Source "ChessBase"]
[SourceQuality "1"]
[TimeControl "5400+30"]

1. Nf3 {[%emt 0:06:30]} Nf6 {[%emt 0:10:30]} 2. c4 {[%emt 0:01:30]} c5 {[%emt 0:00:30]} 3. Nc3 {[%emt 0:00:30]} Nc6 {[%emt 0:00:30]} 4. d4 {[%emt 0:00:00]} cxd4 {[%emt 0:00:00]} 5. Nxd4 {[%emt 0:00:00]} g6 {[%emt 0:00:00]} 6. e4 {[%emt 0:00:00]} d6 {[%emt 0:00:00]} 7. Be2 {[%emt 0:00:00]} Bg7 {[%emt 0:00:00]} 8. Be3 {[%emt 0:00:00]} O-O {[%emt 0:00:00]} 9. O-O {[%emt 0:00:00]} Bd7 {[%emt 0:00:00]} 10. Qd2 {[%emt 0:00:00]} Nxd4 {[%emt 0:00:30]} 11. Bxd4 {[%emt 0:00:00]} Bc6 {[%emt 0:00:30]} 12. f3 {[%emt 0:00:30]} Nd7 {[%emt 0:00:30]} 13. b4 {[%emt 0:00:30]} Bxd4+ {[%emt 0:04:30]} 14. Qxd4 {[%emt 0:00:30]} Qb6 {[%emt 0:00:00]} 15. Qxb6 {[%emt 0:00:00]} Nxb6 {[%emt 0:00:00]} 16. a4 {[%emt 0:00:00]} a5 {[%emt 0:00:30]} 17. b5 {[%emt 0:00:30]} Bd7 {[%emt 0:00:30]} 18. Rfc1 {[%emt 0:00:00]} Be6 {[%emt 0:01:30]} 19. Nb1 {[%emt 0:18:00]} Nd7 {[%emt 0:10:30]} 20. Nd2 {[%emt 0:02:30]} Nc5 {[%emt 0:12:30]} 21. Rc3 {[%emt 0:08:30]} Rac8 {[%emt 0:01:30]} 22. Raa3 {[%emt 0:02:30]} Rc7 {[%emt 0:03:30]} 23. f4 {[%emt 0:05:30]} Rfc8 {[%emt 0:07:30]} 24. Bf3 {[%emt 0:12:30]} f6 {[%emt 0:03:30]} 25. Ra1 {[%emt 0:15:30]} Bf7 {[%emt 0:04:30]} 26. e5 {[%emt 0:05:30]} dxe5 {[%emt 0:02:30]} 27. fxe5 {[%emt 0:00:30]} Rd7 {[%emt 0:03:30]} 28. Ne4 {[%emt 0:02:46]} f5 {[%emt 0:00:30]} 29. Ng5 {[%emt 0:01:44]} h6 {[%emt 0:01:30]} 30. e6 {[%emt 0:01:31]} Bxe6 {[%emt 0:00:30]} 31. Nxe6 {[%emt 0:01:14]} Nxe6 {[%emt 0:00:30]} 32. Bd5 {[%emt 0:02:08]} Rxd5 {[%emt 0:01:30]} 33. cxd5 {[%emt 0:00:31]} Rxc3 {[%emt 0:00:30]} 34. dxe6 {[%emt 0:00:00]} Kg7 {[%emt 0:02:30]} 35. Rd1 {[%emt 0:00:05]} Kf6 {[%emt 0:01:30]} 36. Rd7 {[%emt 0:00:12]} Rc4 {[%emt 0:00:00]} 37. Rxb7 {[%emt 0:00:17]} Rxa4 {[%emt 0:00:00]} 38. b6 {[%emt 0:03:26]} Kxe6 {[%emt 0:01:30]} 39. Rb8 {[%emt 0:00:08]} Rb4 {[%emt 0:00:00]} 40. b7 {[%emt 0:01:36]} Kf7 {[%emt 0:01:00]} 41. Kf2 {[%emt 0:01:08]} a4 {[%emt 0:00:30]} 42. Ra8 {[%emt 0:00:32]} Rxb7 {[%emt 0:00:30]} 43. Rxa4 {[%emt 0:00:00]} Rb3 {[%emt 0:00:00]} 44. g4 {[%emt 0:00:28]} Kf6 {[%emt 0:01:00]} 45. gxf5 {[%emt 0:01:20]} gxf5 {[%emt 0:00:00]} 46. h4 {[%emt 0:00:12]} Rh3 {[%emt 0:00:00]} 47. Kg2 {[%emt 0:00:14]} Re3 {[%emt 0:00:30]} 48. Ra8 {[%emt 0:00:15]} Kg6 {[%emt 0:00:30]} 49. Kf2 {[%emt 0:00:39]} f4 {[%emt 0:00:30]} 50. Ra5 {[%emt 0:00:59]} e5 {[%emt 0:01:30]} 51. Ra6+ {[%emt 0:00:30]} Kh5 {[%emt 0:00:30]} 52. Rf6 {[%emt 0:00:00]} Kxh4 {[%emt 0:00:00]} 53. Rxh6+ {[%emt 0:00:09]} Kg5 {[%emt 0:00:00]} 54. Rh8 {[%emt 0:00:04]} Kf5 {[%emt 0:00:30]} 55. Rf8+ {[%emt 0:00:08]} Ke4 {[%emt 0:00:00]} 56. Rb8 {[%emt 0:00:30]} Ra3 {[%emt 0:00:00]} 57. Rb4+ {[%emt 0:00:00]} Kf5 {[%emt 0:00:30]} 58. Rb2 {[%emt 0:00:00]} e4 {[%emt 0:00:30]} 59. Ke2 {[%emt 0:00:06]} Rh3 {[%emt 0:00:00]} 60. Kf1 {[%emt 0:00:38]} e3 {[%emt 0:01:00]} 61. Kg2 {[%emt 0:01:06]} Rg3+ {[%emt 0:00:30]} 62. Kf1 {[%emt 0:00:01]} Ke4 {[%emt 0:00:00]} 63. Ra2 {[%emt 0:00:44]} Rg8 {[%emt 0:00:00]} 64. Ra4+ {[%emt 0:05:00]} Kf3 {[%emt 0:00:30]} 65. Ra2 {[%emt 0:00:00]} e2+ {[%emt 0:00:30]} 66. Rxe2 {[%emt 0:00:13]} Rg1+ {[%emt 0:00:30]} 67. Kxg1 {[%emt 0:00:30]} Kxe2 {[%emt 0:00:00]} 0-1

[Event "4th Baskent University Open 2019"]
[Site "Ankara"]
[Date "2019.06.19"]
[Round "5"]
[White "Akman, Ozgur"]
[Black "Arat, Ufuk Sezen"]
[Result "0-1"]
[ECO "B09"]
[WhiteElo "1930"]
[BlackElo "2368"]
[Annotator "NA"]
[PlyCount "102"]
[EventDate "2019.06.18"]
[EventType "swiss"]
[EventCountry "TUR"]
[SourceTitle "playchess.com"]
[Source "ChessBase"]
[SourceQuality "1"]
[TimeControl "5400+30"]

1. e4 {[%emt 0:00:30]} d6 {[%emt 0:02:30]} 2. d4 {[%emt 0:06:30]} g6 {[%emt 0:00:30]} 3. Nc3 {[%emt 0:00:30]} Bg7 {[%emt 0:00:30]} 4. f4 {[%emt 0:01:30]} Nf6 {[%emt 0:01:30]} 5. Nf3 {[%emt 0:01:30]} O-O {[%emt 0:00:30]} 6. Be3 {[%emt 0:00:30]} b6 {[%emt 0:02:30]} 7. Bd3 {[%emt 0:05:30]} Bb7 {[%emt 0:11:30]} 8. Qe2 {[%emt 0:09:30]} c5 {[%emt 0:03:30]} 9. d5 {[%emt 0:12:30]} Qc8 {[%emt 0:06:30]} 10. O-O {[%emt 0:08:30]} Ba6 {[%emt 0:06:30]} 11. e5 {[%emt 0:17:30]} Bxd3 {[%emt 0:19:30]} 12. cxd3 {[%emt 0:02:30]} Ne8 {[%emt 0:00:30]} 13. d4 {[%emt 0:06:30]} Nc7 {[%emt 0:04:30]} 14. Rad1 {[%emt 0:04:23]} Nd7 {[%emt 0:10:30]} 15. Qf2 {[%emt 0:06:55]} Qb7 {[%emt 0:03:30]} 16. Qh4 {[%emt 0:06:59]} cxd4 {[%emt 0:13:55]} 17. Bxd4 {[%emt 0:04:46]} f6 {[%emt 0:00:30]} 18. e6 {[%emt 0:00:43]} Nc5 {[%emt 0:00:19]} 19. Be3 {[%emt 0:01:28]} b5 {[%emt 0:01:41]} 20. f5 {[%emt 0:00:41]} g5 {[%emt 0:01:15]} 21. Qd4 {[%emt 0:00:28]} b4 {[%emt 0:00:54]} 22. Ne4 {[%emt 0:00:18]} Na4 {[%emt 0:05:21]} 23. g4 {[%emt 0:00:57]} Nb6 {[%emt 0:00:01]} 24. Qxb4 {[%emt 0:00:22]} Ncxd5 {[%emt 0:00:01]} 25. Qd4 {[%emt 0:00:27]} Rfc8 {[%emt 0:00:23]} 26. Rc1 {[%emt 0:00:30]} Nc4 {[%emt 0:00:44]} 27. Bf2 {[%emt 0:01:00]} Nf4 {[%emt 0:00:06]} 28. Rfe1 {[%emt 0:00:00]} Nxb2 {[%emt 0:00:34]} 29. Rxc8+ {[%emt 0:00:30]} Rxc8 {[%emt 0:00:02]} 30. Qxa7 {[%emt 0:00:23]} Nh3+ {[%emt 0:01:14]} 31. Kg2 {[%emt 0:00:40]} Nf4+ {[%emt 0:00:30]} 32. Kg1 {[%emt 0:00:00]} Qxa7 {[%emt 0:02:18]} 33. Bxa7 {[%emt 0:00:12]} h5 {[%emt 0:00:03]} 34. Nd4 {[%emt 0:01:09]} Rc7 {[%emt 0:01:31]} 35. Nb5 {[%emt 0:00:33]} Rc2 {[%emt 0:00:14]} 36. Nbxd6 {[%emt 0:01:04]} Nbd3 {[%emt 0:00:01]} 37. Rb1 {[%emt 0:00:00]} Rg2+ {[%emt 0:00:20]} 38. Kf1 {[%emt 0:00:27]} Rxa2 {[%emt 0:00:23]} 39. Nc8 {[%emt 0:00:24]} Bf8 {[%emt 0:00:14]} 40. Bb6 {[%emt 0:00:39]} Rxh2 {[%emt 0:00:28]} 41. Bg1 {[%emt 0:00:26]} Rc2 {[%emt 0:00:16]} 42. Nb6 {[%emt 0:00:31]} h4 {[%emt 0:00:45]} 43. Nd7 {[%emt 0:00:15]} h3 {[%emt 0:00:11]} 44. Be3 {[%emt 0:00:44]} h2 {[%emt 0:01:08]} 45. Ng3 {[%emt 0:00:06]} Re2 {[%emt 0:00:19]} 46. Ba7 {[%emt 0:00:58]} Ra2 {[%emt 0:00:56]} 47. Bd4 {[%emt 0:00:27]} Ne2 {[%emt 0:00:14]} 48. Nh1 {[%emt 0:01:03]} Nxd4 {[%emt 0:00:02]} 49. Rb8 {[%emt 0:00:17]} Ra1+ {[%emt 0:00:10]} 50. Kg2 {[%emt 0:00:07]} Rg1+ {[%emt 0:00:08]} 51. Kxh2 {[%emt 0:01:00]} Nf3+ {[%emt 0:00:04]} 0-1

[Event "4th Baskent University Open 2019"]
[Site "Ankara"]
[Date "2019.06.19"]
[Round "5"]
[White "Sahin, Arda"]
[Black "Celik, Meric"]
[Result "1/2-1/2"]
[ECO "D02"]
[WhiteElo "1710"]
[BlackElo "1650"]
[Annotator "NA"]
[PlyCount "34"]
[EventDate "2019.06.18"]
[EventType "swiss"]
[EventCountry "TUR"]
[SourceTitle "playchess.com"]
[Source "ChessBase"]
[SourceQuality "1"]
[TimeControl "5400+30"]

1. d4 {[%emt 0:00:30]} d5 {[%emt 0:00:30]} 2. Nf3 {[%emt 0:00:30]} e6 {[%emt 0:00:30]} 3. Bf4 {[%emt 0:01:30]} c5 {[%emt 0:02:30]} 4. e3 {[%emt 0:00:30]} Nc6 {[%emt 0:01:30]} 5. c3 {[%emt 0:00:30]} Nf6 {[%emt 0:05:30]} 6. Nbd2 {[%emt 0:00:30]} Bd6 {[%emt 0:03:30]} 7. Bg3 {[%emt 0:00:00]} Bxg3 {[%emt 0:02:30]} 8. hxg3 {[%emt 0:00:00]} Qd6 {[%emt 0:03:30]} 9. Bb5 {[%emt 0:10:30]} Bd7 {[%emt 0:02:30]} 10. a4 {[%emt 0:03:30]} O-O {[%emt 0:02:30]} 11. Bxc6 {[%emt 0:05:30]} bxc6 {[%emt 0:03:30]} 12. Ne5 {[%emt 0:01:30]} cxd4 {[%emt 0:00:30]} 13. exd4 {[%emt 0:01:30]} c5 {[%emt 0:00:00]} 14. Ndf3 {[%emt 0:07:30]} Rab8 {[%emt 0:17:00]} 15. dxc5 {[%emt 0:09:30]} Qxc5 {[%emt 0:00:30]} 16. Qc2 {[%emt 0:00:30]} Bc8 {[%emt 0:13:30]} 17. O-O-O {[%emt 0:46:08]} Qb6 {[%emt 0:29:08]} 1/2-1/2

[Event "4th Baskent University Open 2019"]
[Site "Ankara"]
[Date "2019.06.19"]
[Round "5"]
[White "Uysal, Ugur"]
[Black "Hasirci, Ozgur Deniz"]
[Result "1-0"]
[ECO "D78"]
[WhiteElo "1644"]
[BlackElo "1549"]
[Annotator "NA"]
[PlyCount "85"]
[EventDate "2019.06.18"]
[EventType "swiss"]
[EventCountry "TUR"]
[SourceTitle "playchess.com"]
[Source "ChessBase"]
[SourceQuality "1"]
[TimeControl "5400+30"]

1. Nf3 {[%emt 0:00:30]} Nf6 {[%emt 0:00:30]} 2. d4 {[%emt 0:00:00]} g6 {[%emt 0:00:30]} 3. c4 {[%emt 0:01:00]} Bg7 {[%emt 0:00:30]} 4. g3 {[%emt 0:00:30]} O-O {[%emt 0:00:00]} 5. Bg2 {[%emt 0:00:00]} c6 {[%emt 0:02:00]} 6. O-O {[%emt 0:00:00]} d5 {[%emt 0:02:30]} 7. Qb3 {[%emt 0:02:30]} Na6 {[%emt 0:09:30]} 8. cxd5 {[%emt 0:04:30]} Nxd5 {[%emt 0:02:30]} 9. e4 {[%emt 0:00:30]} Nb6 {[%emt 0:01:30]} 10. a3 {[%emt 0:01:30]} Be6 {[%emt 0:02:30]} 11. Qc2 {[%emt 0:05:30]} h6 {[%emt 0:02:30]} 12. Be3 {[%emt 0:01:30]} Nc4 {[%emt 0:08:30]} 13. Nbd2 {[%emt 0:00:00]} Nd6 {[%emt 0:10:30]} 14. Rfd1 {[%emt 0:04:00]} Rc8 {[%emt 0:06:30]} 15. Bf1 {[%emt 0:10:30]} b5 {[%emt 0:06:30]} 16. h3 {[%emt 0:01:30]} f5 {[%emt 0:05:30]} 17. e5 {[%emt 0:04:30]} Ne4 {[%emt 0:04:30]} 18. Nxe4 {[%emt 0:02:30]} fxe4 {[%emt 0:00:30]} 19. Nd2 {[%emt 0:00:30]} Qd7 {[%emt 0:09:30]} 20. Kh2 {[%emt 0:04:30]} h5 {[%emt 0:07:32]} 21. Qxe4 {[%emt 0:03:30]} Bf5 {[%emt 0:02:43]} 22. Qh4 {[%emt 0:06:30]} Nc7 {[%emt 0:01:30]} 23. Ne4 {[%emt 0:02:30]} Nd5 {[%emt 0:02:28]} 24. Nc5 {[%emt 0:00:00]} Qe8 {[%emt 0:00:56]} 25. g4 {[%emt 0:06:00]} Nxe3 {[%emt 0:03:47]} 26. fxe3 {[%emt 0:00:30]} hxg4 {[%emt 0:00:00]} 27. hxg4 {[%emt 0:00:30]} Kf7 {[%emt 0:01:52]} 28. Kg1 {[%emt 0:03:30]} Rh8 {[%emt 0:02:26]} 29. Qf2 {[%emt 0:00:30]} e6 {[%emt 0:00:00]} 30. e4 {[%emt 0:02:30]} Kg8 {[%emt 0:00:33]} 31. exf5 {[%emt 0:01:30]} gxf5 {[%emt 0:00:04]} 32. gxf5 {[%emt 0:00:30]} Qh5 {[%emt 0:00:32]} 33. Bg2 {[%emt 0:01:30]} exf5 {[%emt 0:00:12]} 34. Rd3 {[%emt 0:03:30]} Qh2+ {[%emt 0:01:33]} 35. Kf1 {[%emt 0:00:30]} f4 {[%emt 0:00:00]} 36. Ne6 {[%emt 0:02:30]} Re8 {[%emt 0:00:41]} 37. Nxg7 {[%emt 0:01:30]} Kxg7 {[%emt 0:00:12]} 38. Rc1 {[%emt 0:02:30]} Re6 {[%emt 0:03:15]} 39. Qg1 {[%emt 0:04:02]} Rg6 {[%emt 0:01:21]} 40. Rc2 {[%emt 0:00:00]} Kf7 {[%emt 0:01:12]} 41. Rh3 {[%emt 0:00:28]} Rxg2 {[%emt 0:00:53]} 42. Rxh2 {[%emt 0:00:30]} Rhg8 {[%emt 0:00:30]} 43. Rh3 {[%emt 0:00:30]} 1-0